fUST/lending_fUST_20250523
["ID","MTS","AMOUNT","RATE_DAILY","PERIOD"]
[362065459,1747966245082,-430.0,0.00017947,2]
[362065460,1747966245091,-449.06290295,0.00017947,2]
[362065461,1747966245101,-203.45722415,0.00017947,2]
[362065462,1747966245111,-430.0,0.00017947,2]
[362065463,1747966245120,-430.0,0.00017947,2]
[362065464,1747966245131,-430.0,0.00017947,2]
[362065465,1747966245143,-14074.3001977,0.00018,2]
[362065466,1747966245153,-248.974893,0.00018,2]
[362065467,1747966245163,-151.0,0.00018,2]
[362065468,1747966245173,-151.0,0.00018,2]
[362065469,1747966245183,-151.0,0.00018,2]
[362065470,1747966245192,-151.0,0.00018,2]
[362065471,1747966245202,-420.0,0.00018035,2]
[362065472,1747966245212,-1000.0,0.00018221,2]
[362065473,1747966245222,-506.15605884,0.00018221,2]
[362065474,1747966245231,-1000.0,0.00018221,2]
[362065475,1747966245241,-430.0,0.00018221,2]
[362065476,1747966245251,-442.02609151,0.00018221,2]
[362065477,1747966245261,-500.0,0.00018221,2]
[362065478,1747966245271,-446.73811007,0.00018221,2]
[362065479,1747966245281,-445.26542395,0.00018221,2]
[362065480,1747966245290,-430.0,0.00018221,2]
[362065481,1747966245300,-430.0,0.00018221,2]
[362065482,1747966245309,-445.63059755,0.00018221,2]
[362065484,1747966245319,-430.0,0.00018221,2]
[362065485,1747966245328,-430.0,0.00018221,2]
[362065486,1747966245343,-430.0,0.00018221,2]
[362065487,1747966245352,-418.08,0.00018221,2]
[362065488,1747966245362,-430.0,0.00018221,2]
[362065489,1747966245373,-430.0,0.00018221,2]
[362065490,1747966245382,-501.09436803,0.00018221,2]
[362065491,1747966245392,-457.2650657,0.00018221,2]
[362065492,1747966245402,-430.0,0.00018221,2]
[362065493,1747966245411,-497.2,0.00018221,2]
[362065494,1747966245420,-496.12503132,0.00018221,2]
[362065495,1747966245430,-430.0,0.00018221,2]
[362065497,1747966245439,-430.0,0.00018221,2]
[362065498,1747966245449,-440.1771151,0.00018221,2]
[362065499,1747966245459,-440.13855998,0.00018221,2]
[362065500,1747966245468,-437.34438951,0.00018221,2]
[362065501,1747966245478,-151.0,0.00018221,2]
[362065502,1747966245487,-439.44218863,0.00018221,2]
[362065503,1747966245497,-430.0,0.00018221,2]
[362065504,1747966245506,-459.3592014,0.00018221,2]
[362065505,1747966245516,-457.4470544,0.00018221,2]
[362065506,1747966245526,-430.0,0.00018221,2]
[362065507,1747966245535,-441.11416519,0.00018221,2]
[362065508,1747966245544,-430.0,0.00018221,2]
[362065509,1747966245554,-500.53288763,0.00018221,2]
[362065510,1747966245564,-433.59,0.00018221,2]
[362065511,1747966245574,-443.19138753,0.00018221,2]
[362065512,1747966245584,-1756.264358,0.00018221,2]
[362065513,1747966245595,-1756.264358,0.00018221,2]
[362065514,1747966245605,-430.0,0.00018221,2]
[362065515,1747966245615,-430.0,0.00018221,2]
[362065516,1747966245626,-210.51631516,0.00018221,2]
[362065517,1747966245636,-151.0,0.00018221,2]
[362065518,1747966245646,-430.0,0.00018221,2]
[362065519,1747966245656,-430.0,0.00018221,2]
[362065520,1747966245665,-430.0,0.00018221,2]
[362065521,1747966245675,-430.0,0.00018221,2]
[362065522,1747966245684,-491.29402989,0.00018221,2]
[362065523,1747966245693,-430.0,0.00018221,2]
[362065524,1747966245703,-430.0,0.00018221,2]
[362065525,1747966245712,-743.51,0.00018221,2]
[362065526,1747966245722,-430.0,0.00018221,2]
[362065527,1747966245732,-441.86679347,0.00018221,2]
[362065528,1747966245742,-430.0,0.00018221,2]
[362065529,1747966245751,-430.0,0.00018221,2]
[362065531,1747966245762,-430.0,0.00018221,2]
[362065533,1747966245772,-407.08089917,0.00018221,2]
[362065534,1747966245781,-430.0,0.00018221,2]
[362065535,1747966245790,-437.00286995,0.00018221,2]
[362065536,1747966245799,-430.0,0.00018221,2]
[362065538,1747966245809,-430.0,0.00018221,2]
[362065539,1747966245818,-430.0,0.00018221,2]
[362065540,1747966245827,-430.0,0.00018221,2]
[362065541,1747966245837,-445.10961067,0.00018221,2]
[362065542,1747966245847,-430.0,0.00018221,2]
[362065543,1747966245856,-430.0,0.00018221,2]
[362065544,1747966245866,-566.27510713,0.00018221,2]
[362065545,1747966245875,-902.76,0.00018221,2]
[362065546,1747966245885,-469.12528058,0.00018221,2]
[362065547,1747966245894,-430.0,0.00018221,2]
[362065548,1747966245904,-430.0,0.00018221,2]
[362065550,1747966245913,-430.0,0.00018221,2]
[362065551,1747966245922,-965.21,0.00018221,2]
[362065552,1747966245931,-430.0,0.00018221,2]
[362065553,1747966245941,-537.32472328,0.00018221,2]
[362065554,1747966245950,-430.0,0.00018221,2]
[362065555,1747966245959,-430.0,0.00018221,2]
[362065556,1747966245969,-430.0,0.00018221,2]
[362065557,1747966245978,-438.87063163,0.00018221,2]
[362065558,1747966245988,-694.83,0.00018221,2]
[362065559,1747966245997,-289.53,0.00018221,2]
[362065560,1747966246007,-430.0,0.00018221,2]
[362065561,1747966246017,-430.0,0.00018221,2]
[362065562,1747966246027,-659.88,0.00018221,2]
[362065563,1747966246036,-430.0,0.00018221,2]
[362065564,1747966246046,-430.0,0.00018221,2]
[362065565,1747966246056,-249.29047519,0.00018221,2]
[362065566,1747966246066,-430.0,0.00018221,2]
[362065567,1747966246075,-260.97145883,0.00018221,2]
[362065568,1747966246085,-799.99,0.00018221,2]
[362065569,1747966246095,-430.0,0.00018221,2]
[362065570,1747966246104,-466.47895279,0.00018221,2]
[362065572,1747966246114,-430.0,0.00018221,2]
[362065573,1747966246125,-430.0,0.00018221,2]
[362065574,1747966246136,-430.0,0.00018221,2]
[362065575,1747966246145,-1003.45,0.00018221,2]
[362065576,1747966246155,-440.7662601,0.00018221,2]
[362065577,1747966246165,-464.9,0.00018221,2]
[362065578,1747966246174,-430.0,0.00018221,2]
[362065579,1747966246184,-1271.31,0.00018221,2]
[362065580,1747966246195,-445.92612788,0.00018221,2]
[362065581,1747966246204,-430.0,0.00018221,2]
[362065582,1747966246213,-430.0,0.00018221,2]
[362065583,1747966246223,-430.0,0.00018221,2]
[362065584,1747966246233,-430.0,0.00018221,2]
[362065585,1747966246242,-430.0,0.00018221,2]
[362065586,1747966246252,-431.25,0.00018221,2]
[362065587,1747966246262,-441.56855625,0.00018221,2]
[362065588,1747966246271,-430.0,0.00018221,2]
[362065589,1747966246280,-430.0,0.00018221,2]
[362065590,1747966246290,-430.0,0.00018221,2]
[362065591,1747966246300,-430.0,0.00018221,2]
[362065592,1747966246309,-430.0,0.00018221,2]
[362065593,1747966246319,-500.0,0.00018239,2]
[362065594,1747966246328,-500.0,0.00018239,2]
[362065595,1747966246338,-500.0,0.00018239,2]
[362065596,1747966246347,-500.0,0.00018239,2]
[362065597,1747966246357,-500.3923806,0.00018291,2]
[362065598,1747966246368,-151.0,0.00018292,2]
[362065599,1747966246378,-155.39571,0.00018292,2]
[362065600,1747966246388,-151.0,0.00018292,2]
[362065601,1747966246397,-151.0,0.00018292,2]
[362065602,1747966246406,-151.0,0.00018292,2]
[362065603,1747966246460,-151.929556,0.00018292,2]
[362065604,1747966246469,-151.0,0.00018292,2]
[362065605,1747966246479,-292.960073,0.00018292,2]
[362065606,1747966246488,-500.0,0.00018304,2]
[362065607,1747966246497,-500.0,0.00018304,2]
[362065608,1747966246507,-500.20394628,0.00018304,2]
[362065609,1747966246517,-500.0,0.00018304,2]
[362065610,1747966246530,-500.0,0.00018304,2]
[362065611,1747966246540,-500.0,0.00018304,2]
[362065612,1747966246549,-500.84425498,0.00018307,2]
[362065613,1747966246560,-500.0,0.00018307,2]
[362065614,1747966246570,-500.0,0.00018307,2]
[362065615,1747966246580,-501.08594553,0.00018307,2]
[362065616,1747966246590,-501.59386706,0.00018335,2]
[362065617,1747966246601,-500.0,0.0001834,2]
[362065618,1747966246611,-501.13515725,0.0001834,2]
[362065619,1747966246621,-500.30578052,0.00018341,2]
[362065620,1747966246631,-618.01932855,0.00018341,2]
[362065621,1747966246640,-500.0,0.00018341,2]
[362065622,1747966246650,-501.53872468,0.00018382,2]
[362065623,1747966246659,-502.44858612,0.00018382,2]
[362065624,1747966246669,-427.79384877,0.00018382,2]
[362065625,1747966246678,-588.9767285,0.00018382,2]
[362065626,1747966246688,-504.58561168,0.00018382,2]
[362065627,1747966246697,-500.28951818,0.00018382,2]
[362065628,1747966246706,-500.0,0.00018428,2]
[362065629,1747966246716,-500.0,0.0001848,2]
[362065630,1747966246726,-430.0,0.00018495,2]
[362065631,1747966246735,-502.9810902,0.00018495,2]
[362065632,1747966246744,-439.64719023,0.00018495,2]
[362065633,1747966246754,-486.36693469,0.00018495,2]
[362065634,1747966246764,-438.71776947,0.00018495,2]
[362065635,1747966246773,-430.0,0.00018495,2]
[362065636,1747966246783,-467.37805143,0.00018495,2]
[362065637,1747966246794,-260.41932301,0.00018495,2]
[362065638,1747966246804,-300.847112,0.00018495,2]
[362065639,1747966246813,-492.42747307,0.00018495,2]
[362065640,1747966246822,-430.0,0.00018495,2]
[362065641,1747966246831,-151.0,0.00018495,2]
[362065642,1747966246841,-440.97754189,0.00018495,2]
[362065643,1747966246850,-241.682435,0.00018495,2]
[362065644,1747966246860,-241.682435,0.00018495,2]
[362065645,1747966246870,-430.0,0.00018495,2]
[362065646,1747966246880,-430.0,0.00018495,2]
[362065647,1747966246889,-187.25937885,0.00018495,2]
[362065648,1747966246899,-433.59,0.00018495,2]
[362065649,1747966246908,-430.0,0.00018495,2]
[362065650,1747966246918,-430.0,0.00018495,2]
[362065651,1747966246927,-451.64872367,0.00018495,2]
[362065652,1747966246937,-430.0,0.00018495,2]
[362065653,1747966246946,-438.39461072,0.00018495,2]
[362065654,1747966246955,-430.0,0.00018495,2]
[362065655,1747966246965,-430.0,0.00018495,2]
[362065656,1747966246974,-430.0,0.00018495,2]
[362065657,1747966246983,-743.51,0.00018495,2]
[362065658,1747966246993,-442.81899612,0.00018495,2]
[362065659,1747966247002,-430.0,0.00018495,2]
[362065660,1747966247011,-462.2398733,0.00018495,2]
[362065661,1747966247021,-430.0,0.00018495,2]
[362065662,1747966247030,-430.0,0.00018495,2]
[362065663,1747966247039,-450.07222336,0.00018495,2]
[362065664,1747966247048,-430.0,0.00018495,2]
[362065665,1747966247058,-430.0,0.00018495,2]
[362065666,1747966247067,-430.0,0.00018495,2]
[362065667,1747966247077,-430.0,0.00018495,2]
[362065668,1747966247087,-430.0,0.00018495,2]
[362065669,1747966247096,-902.76,0.00018495,2]
[362065670,1747966247106,-430.0,0.00018495,2]
[362065671,1747966247116,-430.0,0.00018495,2]
[362065672,1747966247127,-430.0,0.00018495,2]
[362065673,1747966247140,-965.21,0.00018495,2]
[362065674,1747966247150,-430.0,0.00018495,2]
[362065675,1747966247160,-430.0,0.00018495,2]
[362065676,1747966247170,-430.0,0.00018495,2]
[362065677,1747966247179,-409.82,0.00018495,2]
[362065678,1747966247189,-694.83,0.00018495,2]
[362065679,1747966247199,-659.88,0.00018495,2]
[362065680,1747966247208,-430.0,0.00018495,2]
[362065681,1747966247218,-442.96961639,0.00018495,2]
[362065682,1747966247228,-519.58021921,0.00018495,2]
[362065683,1747966247238,-799.99,0.00018495,2]
[362065684,1747966247248,-430.0,0.00018495,2]
[362065685,1747966247258,-151.0,0.00018495,2]
[362065686,1747966247267,-430.0,0.00018495,2]
[362065687,1747966247277,-257.73485004,0.00018495,2]
[362065688,1747966247286,-151.0,0.00018495,2]
[362065689,1747966247296,-430.0,0.00018495,2]
[362065690,1747966247306,-1003.45,0.00018495,2]
[362065691,1747966247315,-464.9,0.00018495,2]
[362065692,1747966247325,-430.0,0.00018495,2]
[362065693,1747966247334,-151.0,0.00018495,2]
[362065694,1747966247344,-1271.31,0.00018495,2]
[362065695,1747966247353,-151.0,0.00018495,2]
[362065696,1747966247364,-430.0,0.00018495,2]
[362065697,1747966247374,-430.0,0.00018495,2]
[362065698,1747966247384,-458.92350009,0.00018495,2]
[362065699,1747966247393,-430.0,0.00018495,2]
[362065700,1747966247403,-431.25,0.00018495,2]
[362065701,1747966247413,-450.0,0.00018495,2]
[362065702,1747966247423,-430.0,0.00018495,2]
[362065703,1747966247433,-430.0,0.00018495,2]
[362065704,1747966247442,-551.28,0.00018495,2]
[362065705,1747966247451,-465.7066474,0.00018495,2]
[362065706,1747966247461,-151.0,0.00018508,2]
[362065707,1747966247471,-151.0,0.00018508,2]
[362065708,1747966247480,-151.0,0.00018508,2]
[362065709,1747966247489,-500.73938487,0.00018508,2]
[362065710,1747966247499,-500.0,0.0001862,2]
[362065711,1747966247509,-361.88454623,0.00018697,2]
[362065712,1747966247523,-2198.34,0.0001876,3]
[362065713,1747966247533,-1099.16,0.0001876,3]
[362065714,1747966247543,-549.58,0.0001876,3]
[362065715,1747966247552,-156.981408,0.0001876,2]
[362065716,1747966247562,-1756.264358,0.0001876,2]
[362065717,1747966247572,-1756.264358,0.0001876,2]
[362065718,1747966247582,-151.0,0.0001876,2]
[362065719,1747966247593,-506.11141752,0.00018768,2]
[362065720,1747966247603,-1004.89494255,0.00018768,2]
[362065721,1747966247614,-430.0,0.00018769,2]
[362065722,1747966247623,-430.0,0.00018769,2]
[362065723,1747966247633,-444.91628823,0.00018769,2]
[362065724,1747966247642,-199.22553924,0.00018769,2]
[362065725,1747966247652,-430.0,0.00018769,2]
[362065726,1747966247662,-433.59,0.00018769,2]
[362065727,1747966247672,-430.0,0.00018769,2]
[362065728,1747966247682,-280.65396975,0.00018769,2]
[362065729,1747966247692,-430.0,0.00018769,2]
[362065730,1747966247701,-430.0,0.00018769,2]
[362065731,1747966247712,-430.0,0.00018769,2]
[362065732,1747966247722,-743.51,0.00018769,2]
[362065733,1747966247731,-430.0,0.00018769,2]
[362065734,1747966247741,-496.39114572,0.00018769,2]
[362065735,1747966247752,-430.0,0.00018769,2]
[362065736,1747966247762,-430.0,0.00018769,2]
[362065737,1747966247772,-430.0,0.00018769,2]
[362065738,1747966247782,-430.0,0.00018769,2]
[362065739,1747966247794,-430.0,0.00018769,2]
[362065740,1747966247804,-430.0,0.00018769,2]
[362065741,1747966247814,-902.76,0.00018769,2]
[362065742,1747966247823,-430.0,0.00018769,2]
[362065743,1747966247834,-430.0,0.00018769,2]
[362065744,1747966247843,-430.0,0.00018769,2]
[362065745,1747966247853,-965.21,0.00018769,2]
[362065746,1747966247863,-430.0,0.00018769,2]
[362065747,1747966247874,-430.0,0.00018769,2]
[362065748,1747966247883,-430.0,0.00018769,2]
[362065749,1747966247893,-694.83,0.00018769,2]
[362065750,1747966247903,-659.88,0.00018769,2]
[362065751,1747966247913,-430.0,0.00018769,2]
[362065752,1747966247923,-799.99,0.00018769,2]
[362065753,1747966247933,-457.19033867,0.00018769,2]
[362065754,1747966247944,-430.0,0.00018769,2]
[362065755,1747966247954,-430.0,0.00018769,2]
[362065756,1747966247965,-1003.45,0.00018769,2]
[362065757,1747966247975,-464.9,0.00018769,2]
[362065758,1747966247986,-430.0,0.00018769,2]
[362065759,1747966247996,-151.0,0.00018769,2]
[362065760,1747966248008,-1271.31,0.00018769,2]
[362065761,1747966248020,-151.0,0.00018769,2]
[362065762,1747966248031,-430.0,0.00018769,2]
[362065763,1747966248042,-505.29735372,0.00018769,2]
[362065764,1747966248053,-569.18346715,0.00018769,2]
[362065765,1747966248063,-431.25,0.00018769,2]
[362065766,1747966248074,-430.0,0.00018769,2]
[362065767,1747966248085,-430.0,0.00018769,2]
[362065768,1747966248096,-1000.0,0.00018787,2]
[362065769,1747966248107,-1000.0,0.00018787,2]
[362065770,1747966248118,-1004.56033435,0.00018787,2]
[362065771,1747966248132,-1008.17959848,0.00018787,2]
[362065772,1747966248143,-1000.0,0.00018852,2]
[362065773,1747966248155,-1000.0,0.00018852,2]
[362065774,1747966248166,-1000.0,0.00018852,2]
[362065775,1747966248176,-1000.0,0.00018852,2]
[362065776,1747966248187,-501.22461101,0.00018855,2]
[362065777,1747966248198,-694.37661371,0.00018855,2]
[362065778,1747966248208,-501.66346169,0.00018888,2]
[362065779,1747966248219,-501.06581609,0.00018889,2]
[362065780,1747966248230,-152.344886,0.000189,2]
[362065781,1747966248240,-290.352962,0.000189,2]
[362065782,1747966248252,-151.0,0.000189,2]
[362065783,1747966248263,-152.177729,0.000189,2]
[362065784,1747966248274,-151.0,0.000189,2]
[362065785,1747966248286,-208.356235,0.000189,2]
[362065786,1747966248297,-208.356235,0.000189,2]
[362065787,1747966248307,-1056.50811657,0.000189,2]
[362065788,1747966248318,-151.0,0.000189,2]
[362065789,1747966248327,-151.0,0.000189,2]
[362065790,1747966248337,-151.0,0.0001902,2]
[362065791,1747966248347,-205.9021066,0.0001902,2]
[362065792,1747966248357,-207.4,0.0001902,2]
[362065793,1747966248368,-4396.66,0.00019031,3]
[362065794,1747966248381,-160.0,0.00019042,2]
[362065795,1747966248390,-430.0,0.00019043,2]
[362065796,1747966248400,-175.281537,0.00019043,2]
[362065797,1747966248410,-175.281537,0.00019043,2]
[362065798,1747966248420,-430.0,0.00019043,2]
[362065799,1747966248430,-151.0,0.00019043,2]
[362065800,1747966248440,-151.0,0.00019043,2]
[362065801,1747966248450,-530.84961686,0.00019043,2]
[362065802,1747966248460,-433.59,0.00019043,2]
[362065803,1747966248469,-430.0,0.00019043,2]
[362065804,1747966248479,-395.86289653,0.00019043,2]
[362065805,1747966248489,-430.0,0.00019043,2]
[362065806,1747966248499,-452.02706588,0.00019043,2]
[362065807,1747966248509,-743.51,0.00019043,2]
[362065808,1747966248519,-430.0,0.00019043,2]
[362065809,1747966248532,-430.0,0.00019043,2]
[362065810,1747966248542,-430.0,0.00019043,2]
[362065811,1747966248553,-430.0,0.00019043,2]
[362065812,1747966248563,-430.0,0.00019043,2]
[362065813,1747966248573,-336.36575674,0.00019043,2]
[362065814,1747966248584,-902.76,0.00019043,2]
[362065815,1747966248594,-430.0,0.00019043,2]
[362065816,1747966248606,-292.5854453,0.00019043,2]
[362065817,1747966248616,-430.0,0.00019043,2]
[362065818,1747966248626,-965.21,0.00019043,2]
[362065819,1747966248636,-430.0,0.00019043,2]
[362065820,1747966248646,-430.0,0.00019043,2]
[362065821,1747966248656,-486.08978346,0.00019043,2]
[362065822,1747966248666,-694.83,0.00019043,2]
[362065823,1747966248676,-659.88,0.00019043,2]
[362065824,1747966248686,-430.0,0.00019043,2]
[362065825,1747966248696,-799.99,0.00019043,2]
[362065826,1747966248706,-430.0,0.00019043,2]
[362065827,1747966248716,-430.0,0.00019043,2]
[362065828,1747966248727,-1003.45,0.00019043,2]
[362065829,1747966248736,-464.9,0.00019043,2]
[362065830,1747966248746,-443.70602263,0.00019043,2]
[362065831,1747966248756,-1271.31,0.00019043,2]
[362065832,1747966248766,-419.21803078,0.00019043,2]
[362065833,1747966248779,-431.25,0.00019043,2]
[362065834,1747966248790,-248.60552942,0.00019043,2]
[362065835,1747966248801,-430.0,0.00019043,2]
[362065836,1747966248811,-241.682435,0.00019158,2]
[362065837,1747966248821,-241.682435,0.00019158,2]
[362065838,1747966248832,-1011.92155204,0.00019168,2]
[362065839,1747966248842,-175.281537,0.00019178,2]
[362065840,1747966248852,-175.281537,0.00019178,2]
[362065841,1747966248863,-151.0,0.00019178,2]
[362065842,1747966248873,-151.504718,0.00019178,2]
[362065843,1747966248883,-165.079934,0.00019178,2]
[362065844,1747966248894,-208.356235,0.00019178,2]
[362065845,1747966248904,-208.356235,0.00019178,2]
[362065846,1747966248915,-1756.264358,0.00019178,2]
[362065847,1747966248925,-1756.264358,0.00019178,2]
[362065848,1747966248934,-172.757438,0.00019178,2]
[362065849,1747966248944,-151.0,0.00019178,2]
[362065850,1747966248954,-151.0,0.00019178,2]
[362065851,1747966248965,-151.0,0.00019178,2]
[362065852,1747966248976,-151.0,0.00019178,2]
[362065853,1747966248986,-500.0,0.00019178,2]
[362065854,1747966248997,-500.0,0.00019178,2]
[362065855,1747966249007,-500.0,0.00019178,2]
[362065856,1747966249018,-500.0,0.00019178,2]
[362065857,1747966249028,-500.0,0.00019178,2]
[362065858,1747966249038,-500.0,0.00019178,2]
[362065859,1747966249048,-500.0,0.00019178,2]
[362065860,1747966249058,-500.0,0.00019178,2]
[362065861,1747966249067,-500.0,0.00019178,2]
[362065862,1747966249077,-500.0,0.00019178,2]
[362065863,1747966249087,-500.0,0.00019178,2]
[362065864,1747966249097,-500.0,0.00019178,2]
[362065865,1747966249107,-322.1183596,0.00019178,2]
[362065866,1747966249117,-500.0,0.00019178,2]
[362065867,1747966249127,-500.0,0.00019178,2]
[362065868,1747966249138,-500.0,0.00019178,2]
[362065869,1747966249148,-500.0,0.00019178,2]
[362065870,1747966249158,-500.0,0.00019178,2]
[362065871,1747966249168,-500.0,0.00019178,2]
[362065872,1747966249179,-500.0,0.00019178,2]
[362065873,1747966249190,-500.0,0.00019178,2]
[362065874,1747966249200,-500.0,0.00019178,2]
[362065875,1747966249210,-500.0,0.00019178,2]
[362065876,1747966249221,-500.0,0.00019178,2]
[362065877,1747966249232,-500.0,0.00019178,2]
[362065878,1747966249242,-500.0,0.00019178,2]
[362065879,1747966249255,-500.0,0.00019178,2]
[362065880,1747966249265,-500.0,0.00019178,2]
[362065881,1747966249275,-500.0,0.00019178,2]
[362065882,1747966249286,-500.0,0.00019178,2]
[362065883,1747966249296,-500.0,0.00019178,2]
[362065884,1747966249306,-500.0,0.00019178,2]
[362065885,1747966249316,-500.0,0.00019178,2]
[362065886,1747966249327,-500.0,0.00019178,2]
[362065887,1747966249338,-500.0,0.00019178,2]
[362065888,1747966249348,-192.763534,0.00019178,2]
[362065889,1747966249358,-151.0,0.00019317,2]
[362065890,1747966249368,-196.44879957,0.00019317,2]
[362065891,1747966249381,-151.0,0.00019317,2]
[362065892,1747966249391,-205.637809,0.00019317,2]
[362065893,1747966249401,-151.0,0.00019317,2]
[362065894,1747966249411,-151.0,0.00019317,2]
[362065895,1747966249421,-430.0,0.00019317,2]
[362065896,1747966249433,-151.0,0.00019317,2]
[362065897,1747966249596,-151.0,0.00019317,2]
[362065898,1747966249607,-295.002582,0.00019317,2]
[362065899,1747966249616,-433.59,0.00019317,2]
[362065900,1747966249627,-430.0,0.00019317,2]
[362065901,1747966249637,-430.0,0.00019317,2]
[362065902,1747966249646,-743.51,0.00019317,2]
[362065903,1747966249655,-430.0,0.00019317,2]
[362065904,1747966249665,-430.0,0.00019317,2]
[362065905,1747966249674,-430.0,0.00019317,2]
[362065906,1747966249685,-430.0,0.00019317,2]
[362065907,1747966249695,-430.0,0.00019317,2]
[362065908,1747966249704,-902.76,0.00019317,2]
[362065909,1747966249714,-430.0,0.00019317,2]
[362065910,1747966249724,-430.0,0.00019317,2]
[362065911,1747966249734,-965.21,0.00019317,2]
[362065912,1747966249744,-305.00833223,0.00019317,2]
[362065913,1747966249753,-430.0,0.00019317,2]
[362065914,1747966249763,-694.83,0.00019317,2]
[362065915,1747966249772,-659.88,0.00019317,2]
[362065916,1747966249783,-430.0,0.00019317,2]
[362065917,1747966249793,-799.99,0.00019317,2]
[362065918,1747966249803,-430.0,0.00019317,2]
[362065919,1747966249814,-450.0,0.00019317,2]
[362065920,1747966249825,-1003.45,0.00019317,2]
[362065921,1747966249834,-464.9,0.00019317,2]
[362065922,1747966249844,-1271.31,0.00019317,2]
[362065923,1747966249853,-431.25,0.00019317,2]
[362065924,1747966249863,-427.01,0.00019317,2]
[362065925,1747966249874,-1500.0,0.00019335,2]
[362065926,1747966249884,-1500.0,0.00019335,2]
[362065927,1747966249894,-1500.0,0.000194,2]
[362065928,1747966249903,-503.68506702,0.000194,2]
[362065929,1747966249912,-503.55857605,0.000194,2]
[362065930,1747966249922,-1003.41552726,0.000194,2]
[362065931,1747966249931,-500.0,0.00019453,2]
[362065932,1747966249942,-1756.264358,0.000195,2]
[362065933,1747966249952,-1756.264358,0.000195,2]
[362065934,1747966249962,-2827.23988436,0.000195,2]
[362065935,1747966249972,-2827.23988435,0.000195,2]
[362065936,1747966249982,-2827.23988435,0.000195,2]
[362065937,1747966249991,-2827.23988435,0.000195,2]
[362065938,1747966250001,-2827.23988435,0.000195,2]
[362065939,1747966250011,-2827.23988435,0.000195,2]
[362065940,1747966250022,-2827.23988435,0.000195,2]
[362065941,1747966250031,-151.0,0.000195,2]
[362065942,1747966250042,-291.111573,0.000195,2]
[362065943,1747966250052,-208.356235,0.00019572,2]
[362065944,1747966250061,-208.356235,0.00019572,2]
[362065945,1747966250070,-2827.23988435,0.0001959,2]
[362065946,1747966250080,-430.0,0.00019591,2]
[362065947,1747966250089,-433.59,0.00019591,2]
[362065948,1747966250099,-430.0,0.00019591,2]
[362065949,1747966250109,-430.0,0.00019591,2]
[362065950,1747966250119,-743.51,0.00019591,2]
[362065951,1747966250128,-430.0,0.00019591,2]
[362065952,1747966250138,-430.0,0.00019591,2]
[362065953,1747966250148,-430.0,0.00019591,2]
[362065954,1747966250157,-430.0,0.00019591,2]
[362065955,1747966250166,-430.0,0.00019591,2]
[362065956,1747966250176,-902.76,0.00019591,2]
[362065957,1747966250186,-430.0,0.00019591,2]
[362065958,1747966250196,-430.0,0.00019591,2]
[362065959,1747966250206,-965.21,0.00019591,2]
[362065960,1747966250216,-430.0,0.00019591,2]
[362065961,1747966250225,-694.83,0.00019591,2]
[362065962,1747966250235,-659.88,0.00019591,2]
[362065963,1747966250245,-430.0,0.00019591,2]
[362065964,1747966250254,-799.99,0.00019591,2]
[362065965,1747966250264,-151.0,0.00019591,2]